{"text_format":"3","workbook":"xlsx","n_sheets":2,"sheets":["QUIZ","Données"],"not_rendered":{"macros":1,"defined_names":1},"read":"whole","date_system":"1900"}

{"sheet":"QUIZ","index":0,"n_rows":112,"n_cols":22,"rows_kept":112,"merged":[[9,2,9,10],[14,2,14,10],[16,0,16,2],[24,4,25,4],[24,5,25,9],[26,5,28,5],[29,6,29,7],[29,8,29,9],[31,2,31,3],[31,5,31,7],[31,9,31,10],[32,9,32,10],[33,9,33,10],[34,0,34,1]]}
[]
[]
[]
[null,"Un peu de détente…"]
[]
[]
[{"$nulls":18},"Test réponse"]
[]
[null,null,"Question :",{"$nulls":15},"Réponse E","Bonne réponse","Trouve","Test erreur"]
[null,0,{"$f":"IF(B10=0,\"\",VLOOKUP(B10,Questions_Q,2))","v":""},{"$nulls":14},0,{"$f":"F25","v":0},{"$f":"VLOOKUP(B10,Q12:R105,2)","v":{"$error":"#N/A"}},{"$f":"SEARCH(T10,S10:S10)","v":{"$error":"#N/A"}},{"$f":"IF(ISERR(U10)=TRUE,0,1)","v":1}]
[{"$nulls":18},1]
[{"$nulls":16},1,{"$f":"Données!E6","v":"bordereau"}]
[{"$nulls":16},2,{"$f":"Données!E7","v":"manteau"}]
[null,null,"Réponse :",{"$nulls":13},3,{"$f":"Données!E8","v":"soustrai"}]
[null,null,{"$f":"VLOOKUP(B10,Questions_Q,3)","v":{"$error":"#N/A"}},{"$nulls":11},"Compteurs",null,4,{"$f":"Données!E9","v":"pas"}]
[{"$nulls":16},5,{"$f":"Données!E10","v":"pièce"}]
[{"$nulls":10},{"$f":"IF(O24=(D34-C34+1),\"Fin de série\",\"\")","v":""},{"$nulls":3},"Nb questions",null,6,{"$f":"Données!E11","v":"pour"}]
[{"$nulls":14},{"$f":"100-COUNTIF(R12:R111,0)","v":27},null,7,{"$f":"Données!E12","v":"intérêt"}]
[{"$nulls":16},8,{"$f":"Données!E13","v":"dividende"}]
[{"$nulls":14},"Nb tirage",null,9,{"$f":"Données!E14","v":"valeur"}]
[{"$nulls":16},10,{"$f":"Données!E15","v":"source"}]
[{"$nulls":16},11,{"$f":"Données!E16","v":35}]
[{"$nulls":14},"Nb justes",null,12,{"$f":"Données!E17","v":"courtage"}]
[null,null,"Ctrl s = voir solution",null,null,"Réponse écrite ici :",{"$nulls":8},{"$f":"SUM(S12:S111)","v":0},null,13,{"$f":"Données!E18","v":"crédit"}]
[null,null,"Ctrl y = cacher la solution",{"$nulls":13},14,{"$f":"Données!E19","v":"couru"}]
[null,null,"Ctrl q = tirage question",{"$nulls":7},"Enter",{"$nulls":3},"Nb réponse",null,15,{"$f":"Données!E20","v":"pair"}]
[{"$nulls":5},"Enter",{"$nulls":10},16,{"$f":"Données!E21","v":"échéance"}]
[{"$nulls":16},17,{"$f":"Données!E22","v":"non"}]
[{"$nulls":14},"E/0",null,18,{"$f":"Données!E23","v":"direct"}]
[{"$nulls":10},{"$f":"IF(O24=(D34-C34+1),\"Fin de série\",\"\")","v":""},{"$nulls":3},2,null,19,{"$f":"Données!E24","v":"timbre"}]
[{"$nulls":16},20,{"$f":"Données!E25","v":"bourse "}]
[null,null,"Tirage au sort ",null,null,{"$f":"IF(F25=\"\",\"\",IF(O33=0,IF(V10=1,\"Bravo\",\"Non désolé !\"),\"Solution demandée !!!\"))","v":""},{"$nulls":3},"Réponses données :",null,{"$f":"IF(O36=FALSE,O27-1,O27)","v":-1},null,null,"Sol",null,21,{"$f":"Données!E26","v":"option"}]
[null,null,"minimum","maximum",{"$nulls":5},"Réponses justes :",null,{"$f":"O24","v":0},null,null,0,null,22,{"$f":"Données!E27","v":"créance"}]
[null,null,1,27,{"$nulls":5},"Questions posées :",null,{"$f":"O21","v":0},{"$nulls":4},23,{"$f":"Données!E28","v":"capital"}]
["Zoom écran",{"$nulls":13},"Valid",null,24,{"$f":"Données!E29","v":"smi"}]
[95,{"$nulls":13},false,null,25,{"$f":"Données!E30","v":"non"}]
[{"$nulls":16},26,{"$f":"Données!E31","v":"échéance"}]
[{"$nulls":16},27,{"$f":"Données!E32","v":"pas"}]
[{"$nulls":16},28,{"$f":"Données!E33","v":0}]
[{"$nulls":16},29,{"$f":"Données!E34","v":0}]
[{"$nulls":16},30,{"$f":"Données!E35","v":0}]
[{"$nulls":16},31,{"$f":"Données!E36","v":0}]
[{"$nulls":16},32,{"$f":"Données!E37","v":0}]
[{"$nulls":16},33,{"$f":"Données!E38","v":0}]
[{"$nulls":16},34,{"$f":"Données!E39","v":0}]
[{"$nulls":16},35,{"$f":"Données!E40","v":0}]
[{"$nulls":16},36,{"$f":"Données!E41","v":0}]
[{"$nulls":16},37,{"$f":"Données!E42","v":0}]
[{"$nulls":16},38,{"$f":"Données!E43","v":0}]
[{"$nulls":16},39,{"$f":"Données!E44","v":0}]
[{"$nulls":16},40,{"$f":"Données!E45","v":0}]
[{"$nulls":16},41,{"$f":"Données!E46","v":0}]
[{"$nulls":16},42,{"$f":"Données!E47","v":0}]
[{"$nulls":16},43,{"$f":"Données!E48","v":0}]
[{"$nulls":16},44,{"$f":"Données!E49","v":0}]
[{"$nulls":16},45,{"$f":"Données!E50","v":0}]
[{"$nulls":16},46,{"$f":"Données!E51","v":0}]
[{"$nulls":16},47,{"$f":"Données!E52","v":0}]
[{"$nulls":16},48,{"$f":"Données!E53","v":0}]
[{"$nulls":16},49,{"$f":"Données!E54","v":0}]
[{"$nulls":16},50,{"$f":"Données!E55","v":0}]
[{"$nulls":16},51,{"$f":"Données!E56","v":0}]
[{"$nulls":16},52,{"$f":"Données!E57","v":0}]
[{"$nulls":16},53,{"$f":"Données!E58","v":0}]
[{"$nulls":16},54,{"$f":"Données!E59","v":0}]
[{"$nulls":16},55,{"$f":"Données!E60","v":0}]
[{"$nulls":16},56,{"$f":"Données!E61","v":0}]
[{"$nulls":16},57,{"$f":"Données!E62","v":0}]
[{"$nulls":16},58,{"$f":"Données!E63","v":0}]
[{"$nulls":16},59,{"$f":"Données!E64","v":0}]
[{"$nulls":16},60,{"$f":"Données!E65","v":0}]
[{"$nulls":16},61,{"$f":"Données!E66","v":0}]
[{"$nulls":16},62,{"$f":"Données!E67","v":0}]
[{"$nulls":16},63,{"$f":"Données!E68","v":0}]
[{"$nulls":16},64,{"$f":"Données!E69","v":0}]
[{"$nulls":16},65,{"$f":"Données!E70","v":0}]
[{"$nulls":16},66,{"$f":"Données!E71","v":0}]
[{"$nulls":16},67,{"$f":"Données!E72","v":0}]
[{"$nulls":16},68,{"$f":"Données!E73","v":0}]
[{"$nulls":16},69,{"$f":"Données!E74","v":0}]
[{"$nulls":16},70,{"$f":"Données!E75","v":0}]
[{"$nulls":16},71,{"$f":"Données!E76","v":0}]
[{"$nulls":16},72,{"$f":"Données!E77","v":0}]
[{"$nulls":16},73,{"$f":"Données!E78","v":0}]
[{"$nulls":16},74,{"$f":"Données!E79","v":0}]
[{"$nulls":16},75,{"$f":"Données!E80","v":0}]
[{"$nulls":16},76,{"$f":"Données!E81","v":0}]
[{"$nulls":16},77,{"$f":"Données!E82","v":0}]
[{"$nulls":16},78,{"$f":"Données!E83","v":0}]
[{"$nulls":16},79,{"$f":"Données!E84","v":0}]
[{"$nulls":16},80,{"$f":"Données!E85","v":0}]
[{"$nulls":16},81,{"$f":"Données!E86","v":0}]
[{"$nulls":16},82,{"$f":"Données!E87","v":0}]
[{"$nulls":16},83,{"$f":"Données!E88","v":0}]
[{"$nulls":16},84,{"$f":"Données!E89","v":0}]
[{"$nulls":16},85,{"$f":"Données!E90","v":0}]
[{"$nulls":16},86,{"$f":"Données!E91","v":0}]
[{"$nulls":16},87,{"$f":"Données!E92","v":0}]
[{"$nulls":16},88,{"$f":"Données!E93","v":0}]
[{"$nulls":16},89,{"$f":"Données!E94","v":0}]
[{"$nulls":16},90,{"$f":"Données!E95","v":0}]
[{"$nulls":16},91,{"$f":"Données!E96","v":0}]
[{"$nulls":16},92,{"$f":"Données!E97","v":0}]
[{"$nulls":16},93,{"$f":"Données!E98","v":0}]
[{"$nulls":16},94,{"$f":"Données!E99","v":0}]
[{"$nulls":16},95,{"$f":"Données!E100","v":0}]
[{"$nulls":16},96,{"$f":"Données!E101","v":0}]
[{"$nulls":16},97,{"$f":"Données!E102","v":0}]
[{"$nulls":16},98,{"$f":"Données!E103","v":0}]
[{"$nulls":16},99,{"$f":"Données!E104","v":0}]
[{"$nulls":16},100,{"$f":"Données!E105","v":0}]
[{"$nulls":16},101,{"$f":"Données!E106","v":0}]

{"sheet":"Données","index":1,"n_rows":33,"n_cols":19,"rows_kept":33,"hidden":true,"merged":[[4,9,4,11],[5,9,5,11]]}
[]
[]
[]
[null,"no","Questions","Réponses","Réponses pour test"]
[null,{"$f":"101-COUNTBLANK(D6:D106)","v":27},"Nouveau jeu",{"$nulls":6},"Feuille de données"]
[null,1,"Comment s'appelle le document bancaire adressé par la banque à son client lors de l'achat ou de la vente de titres ?","un bordereau","bordereau",{"$nulls":4},"Ne pas supprimer !"]
[null,2,"Comment se nomme la partie supérieures d'une action ou d'une obligation ?","le manteau","manteau"]
[null,3,"Lors de la vente d'une obligation, les frais sont-ils ajoutés ou soustraits ?","soustraits","soustrai"]
[null,4,"Lors de l'achat d'une action, les intérêts courus sont-ils ajoutés ou soustraits ?","il n'y a pas d'intérêts courus !","pas"]
[null,5,"Dans une cote, comment est donné le cours d'une action ?","à la pièce","pièce"]
[null,6,"Dans une cote, comment est donné le cours d'une obligation ","en pourcent","pour"]
[null,7,"A quoi donne droit le coupon d'une obligation ?","un intérêt","intérêt"]
[null,8,"A quoi donne droit le coupon d'une action ?","un dividende","dividende"]
[null,9,"Comment s'appelle une bourse qui traite les titres ?","bourse des valeurs","valeur"]
[null,10,"A quel moment frappe l'impôt anticipé ?","à la source","source",{"$nulls":13},0]
[null,11,"Quel est le taux actuel de l'impôt anticipé ?",{"v":0.35,"d":"35%"},35]
[null,12,"Comment nomme-t-on les frais bancaires (commissions) liés à l'achat ou la vente d'un titre ?","courtage","courtage"]
[null,13,"Lors de la vente d'un titre, le compte du client est-il débité ou crédité ?","crédité","crédit"]
[null,14,"Comment s'appelle l'intérêt compris entre le dernier coupon payé et la date de la vente d'une obligation ?","coupon couru","couru"]
[null,15,"Comme nomme-t-on le cours d'une obligation lorsqu'il est à 100% ?","au pair","pair"]
[null,16,"Quelle est la date de départ pour calculer les intérêts  d'un coupon couru ?","échéance des coupons","échéance"]
[null,17,"Calcule-t-on l'impôt anticipé sur les intérêts courus ?","non","non"]
[null,18,"Comment nomme-t-on le taux de rendement qui ne tient pas compte de l'achat et de la vente du titre ?","taux de rendement direct","direct"]
[null,19,"Comme s'appelle l'impôt sur l'achat et la vente des titres ?","timbre fédéral","timbre"]
[null,20,"Si je tape \"SMX.com\" sur Internet, où est-ce que j'arrive ?","le site de la bourse suisse","bourse "]
[null,21,"Comment s'appelle le droit d'acheter ou de vendre un titre à un prix défini à l'avance et pendant une période déterminée ?","une option","option"]
[null,22,"Comme appelle-t-on le droit qui est incorporé à une obligation ?","droit de créance","créance",{"$nulls":9},1]
[null,23,"Une action représente une part de .......................  d'une société anonyme.","capital","capital"]
[null,24,"Comment s'appelle l'index boursier suisse ? (sigle)","SMI","smi"]
[null,25,"L'indexe japonais NIKKEI a été créé par l'économiste Nicky Kei ?","Non - Nikkei = noms de journaux","non"]
[null,26,"Comme s'appelle la date de remboursement d'une obligation ?","l'échéance","échéance"]
[null,27,"Comme s'appelle la date de remboursement d'une action ?","l'action n'est pas remboursable","pas"]
[null,28]